fUST/lending_fUST_20260322
["ID","MTS","AMOUNT","RATE_DAILY","PERIOD"]
[408678352,1774109462568,-600.0,0.000155,2]
[408678353,1774109462577,-1900.0,0.000155,2]
[408678354,1774109462587,-1900.0,0.000155,2]
[408678355,1774109462595,-1131.19864647,0.000155,2]
[408678356,1774109462605,-1900.0,0.000155,2]
[408678357,1774109462615,-1900.0,0.000155,2]
[408678358,1774109462624,-1900.0,0.000155,2]
[408678359,1774109462633,-3599.63267314,0.000155,2]
[408678360,1774109462643,-800.0,0.000155,2]
[408678361,1774109462656,-800.0,0.000155,2]
[408678362,1774109462665,-800.0,0.000155,2]
[408678363,1774109462674,-800.0,0.000155,2]
[408678364,1774109462685,-800.0,0.000155,2]
[408678365,1774109462694,-800.0,0.000155,2]
[408678366,1774109462704,-800.0,0.000155,2]
[408678367,1774109462714,-800.0,0.000155,2]
[408678368,1774109462725,-800.0,0.000155,2]
[408678369,1774109462735,-800.0,0.000155,2]
[408678370,1774109462745,-800.0,0.000155,2]
[408678371,1774109462755,-800.0,0.000155,2]
[408678372,1774109462765,-800.0,0.000155,2]
[408678373,1774109462775,-1370.97437961,0.000155,2]
[408678374,1774109462784,-500.0,0.000155,2]
[408678375,1774109462793,-10125.9954636,0.000155,2]
[408678376,1774109462802,-321.5986262,0.00015531,30]
[408678377,1774109462812,-236.75590028,0.00015531,30]
[408678378,1774109462821,-1555.5,0.00015534,2]
[408678379,1774109462830,-1613.0535,0.00015589,2]
[408678380,1774109462839,-10125.9954636,0.000156,2]
[408678381,1774109462849,-194.99977778,0.00015604,30]
[408678382,1774109462858,-152.0417379,0.00015604,30]
[408678383,1774109462867,-5000.0,0.0001564,2]
[408678384,1774109462877,-1672.7364795,0.00015644,2]
[408678385,1774109462886,-226.54350859,0.00015656,30]
[408678386,1774109462896,-237.29725647,0.00015656,30]
[408678387,1774109462905,-1734.62772924,0.00015699,2]
[408678388,1774109462915,-172.20316389,0.00015703,30]
[408678389,1774109462924,-151.0,0.00015743,2]
[408678390,1774109462934,-1798.80895522,0.00015754,2]
[408678391,1774109462944,-2876.18991768,0.00015797,2]
[408678392,1774109462953,-852.46570498,0.000158,2]
[408678393,1774109462963,-10125.9954636,0.000158,2]
[408678394,1774109462973,-1865.36488657,0.00015809,2]
[408678395,1774109462982,-1500.0,0.00015864,2]
[408678396,1774109462992,-1934.38338737,0.00015864,2]
[408678397,1774109463002,-2500.0,0.0001589,2]
[408678398,1774109463012,-2032.43442255,0.0001589,2]
[408678399,1774109463022,-2500.0,0.0001589,2]
[408678400,1774109463032,-2217.0003502,0.0001589,2]
[408678401,1774109463042,-2500.0,0.0001589,2]
[408678402,1774109463052,-2073.50044419,0.0001589,2]
[408678403,1774109463061,-1211.91713729,0.0001589,2]
[408678404,1774109463071,-355.96913571,0.0001589,2]
[408678405,1774109463081,-467.93678232,0.0001589,2]
[408678406,1774109463240,-1364.10335813,0.0001589,2]
[408678407,1774109463271,-2500.0,0.0001589,2]
[408678408,1774109463280,-1698.80681517,0.0001589,2]
[408678409,1774109463290,-640.36220534,0.0001589,2]
[408678410,1774109463300,-2500.0,0.0001589,2]
[408678411,1774109463309,-2500.0,0.0001589,2]
[408678412,1774109463319,-2075.86456653,0.0001589,2]
[408678413,1774109463328,-341.66210996,0.0001589,2]
[408678414,1774109463338,-2500.0,0.0001589,2]
[408678415,1774109463347,-1035.64405295,0.0001589,2]
[408678416,1774109463357,-1199.65648635,0.0001589,2]
[408678417,1774109463366,-2500.0,0.0001589,2]
[408678418,1774109463376,-2500.0,0.0001589,2]
[408678419,1774109463386,-2500.0,0.0001589,2]
[408678420,1774109463395,-2500.0,0.0001589,2]
[408678421,1774109463404,-435.36564168,0.0001589,2]
[408678422,1774109463413,-2500.0,0.0001589,2]
[408678423,1774109463422,-2500.0,0.0001589,2]
[408678424,1774109463432,-2500.0,0.0001589,2]
[408678425,1774109463442,-1960.2587978,0.0001589,2]
[408678426,1774109463451,-2490.04897357,0.0001589,2]
[408678427,1774109463461,-852.42547625,0.0001589,2]
[408678428,1774109463471,-1353.53475624,0.0001589,2]
[408678429,1774109463480,-1843.88469949,0.0001589,2]
[408678430,1774109463489,-2500.0,0.0001589,2]
[408678431,1774109463498,-2500.0,0.000159,2]
[408678432,1774109463507,-10125.9954636,0.000159,2]
[408678433,1774109463517,-2005.9555727,0.00015919,2]
[408678434,1774109463527,-845.67586003,0.00015974,2]
[408678435,1774109463536,-217.46839918,0.00016,2]
[408678436,1774109463545,-272.18798929,0.00016,3]
[408678437,1774109463554,-3000.0,0.00016,2]
[408678438,1774109463563,-3000.0,0.0001601,2]
[408678439,1774109463573,-3000.0,0.0001602,2]
[408678440,1774109463582,-3000.0,0.0001603,2]
[408678441,1774109463593,-3000.0,0.0001604,2]
[408678442,1774109463602,-3000.0,0.0001605,2]
[408678443,1774109463612,-3000.0,0.0001606,2]
[408678444,1774109463621,-3000.0,0.0001607,2]
[408678445,1774109463632,-3000.0,0.0001608,2]
[408678446,1774109463642,-3000.0,0.0001609,2]
[408678447,1774109463656,-10125.9954636,0.000161,2]
[408678448,1774109463666,-3000.0,0.000161,2]
[408678449,1774109463676,-3000.0,0.0001611,2]
[408678450,1774109463687,-3000.0,0.0001612,2]
[408678451,1774109463696,-3000.0,0.0001613,2]
[408678452,1774109463706,-3000.0,0.0001614,2]
[408678453,1774109463715,-3000.0,0.0001615,2]
[408678454,1774109463725,-3000.0,0.0001616,2]
[408678455,1774109463735,-3000.0,0.0001617,2]
[408678456,1774109463744,-3000.0,0.0001618,2]
[408678457,1774109463753,-3000.0,0.0001619,2]
[408678458,1774109463763,-10125.9954636,0.000162,2]
[408678459,1774109463773,-3000.0,0.000162,2]
[408678460,1774109463782,-3000.0,0.0001621,2]
[408678461,1774109463792,-3000.0,0.0001622,2]
[408678462,1774109463801,-3000.0,0.0001623,2]
[408678463,1774109463811,-3000.0,0.0001624,2]
[408678464,1774109463820,-3000.0,0.0001625,2]
[408678465,1774109463829,-3000.0,0.0001626,2]
[408678466,1774109463839,-3000.0,0.0001627,2]
[408678467,1774109463849,-3000.0,0.0001628,2]
[408678468,1774109463859,-3000.0,0.0001629,2]
[408678469,1774109463869,-3000.0,0.000163,2]
[408678470,1774109463878,-3000.0,0.0001631,2]
[408678471,1774109463887,-3000.0,0.0001632,2]
[408678472,1774109463897,-3000.0,0.0001633,2]
[408678473,1774109463907,-153.43872844,0.00016336,30]
[408678474,1774109463916,-3000.0,0.0001634,2]
[408678475,1774109463926,-2927.31078096,0.00016345,2]
[408678476,1774109463936,-3000.0,0.0001635,2]
[408678477,1774109463945,-3000.0,0.0001636,2]
[408678478,1774109463955,-3000.0,0.0001637,2]
[408678479,1774109463965,-3000.0,0.0001638,2]
[408678480,1774109463974,-3000.0,0.0001639,2]
[408678481,1774109463984,-10125.9954636,0.000164,2]
[408678482,1774109463993,-3000.0,0.000164,2]
[408678483,1774109464004,-3000.0,0.0001641,2]
[408678484,1774109464015,-1800.0,0.00016412,2]
[408678485,1774109464026,-3000.0,0.0001642,2]
[408678486,1774109464036,-3000.0,0.0001643,2]
[408678487,1774109464046,-200.0,0.00016438,2]
[408678488,1774109464055,-814.2,0.00016438,2]
[408678489,1774109464065,-500.0,0.00016438,2]
[408678490,1774109464075,-604.49391309,0.00016438,2]
[408678491,1774109464086,-175.32757838,0.00016438,2]
[408678492,1774109464096,-185.0,0.00016438,3]
[408678493,1774109464106,-151.0,0.00016438,2]
[408678494,1774109464115,-151.0,0.00016438,2]
[408678495,1774109464126,-151.0,0.00016438,2]
[408678496,1774109464136,-151.0,0.00016438,2]
[408678497,1774109464147,-151.0,0.00016438,2]
[408678498,1774109464156,-151.0,0.00016438,2]
[408678499,1774109464166,-151.0,0.00016438,2]
[408678500,1774109464176,-151.0,0.00016438,2]
[408678501,1774109464185,-151.0,0.00016438,2]
[408678502,1774109464195,-151.0,0.00016438,2]
[408678503,1774109464204,-151.0,0.00016438,2]
[408678504,1774109464213,-151.0,0.00016438,2]
[408678505,1774109464223,-151.0,0.00016438,2]
[408678506,1774109464232,-230.132324,0.00016438,2]
[408678507,1774109464242,-200.0,0.00016438,3]
[408678508,1774109464251,-200.0,0.00016438,3]
[408678509,1774109464262,-200.0,0.00016438,3]
[408678510,1774109464272,-200.0,0.00016438,3]
[408678511,1774109464282,-200.0,0.00016438,3]
[408678512,1774109464294,-200.0,0.00016438,3]
[408678513,1774109464304,-151.0,0.00016438,2]
[408678514,1774109464314,-151.0,0.00016438,2]
[408678515,1774109464325,-151.0,0.00016438,2]
[408678516,1774109464336,-151.0,0.00016438,2]
[408678517,1774109464346,-151.0,0.00016438,2]
[408678518,1774109464357,-151.0,0.00016438,2]
[408678519,1774109464368,-151.0,0.00016438,2]
[408678520,1774109464378,-151.0,0.00016438,2]
[408678521,1774109464389,-151.0,0.00016438,2]
[408678522,1774109464399,-151.0,0.00016438,2]
[408678523,1774109464409,-151.0,0.00016438,2]
[408678524,1774109464419,-151.0,0.00016438,2]
[408678525,1774109464430,-151.0,0.00016438,2]
[408678526,1774109464440,-151.0,0.00016438,2]
[408678527,1774109464450,-151.0,0.00016438,2]
[408678528,1774109464460,-151.0,0.00016438,2]
[408678529,1774109464470,-151.0,0.00016438,2]
[408678530,1774109464479,-151.0,0.00016438,2]
[408678531,1774109464489,-301.335708,0.00016438,2]
[408678532,1774109464498,-1500.0,0.00016438,7]
[408678533,1774109464508,-1500.0,0.00016438,7]
[408678534,1774109464518,-1500.0,0.00016438,7]
[408678535,1774109464528,-1500.0,0.00016438,7]
[408678536,1774109464538,-1500.0,0.00016438,7]
[408678537,1774109464548,-1500.0,0.00016438,7]
[408678538,1774109464558,-1500.0,0.00016438,7]
[408678539,1774109464569,-1500.0,0.00016438,7]
[408678540,1774109464579,-1500.0,0.00016438,7]
[408678541,1774109464589,-1500.0,0.00016438,7]
[408678542,1774109464599,-1500.0,0.00016438,7]
[408678543,1774109464610,-1500.0,0.00016438,7]
[408678544,1774109464620,-1500.0,0.00016438,7]
[408678545,1774109464630,-1500.0,0.00016438,7]
[408678546,1774109464642,-1500.0,0.00016438,7]
[408678547,1774109464653,-1500.0,0.00016438,7]
[408678548,1774109464663,-1500.0,0.00016438,7]
[408678549,1774109464673,-1500.0,0.00016438,7]
[408678550,1774109464683,-1500.0,0.00016438,7]
[408678551,1774109464693,-1500.0,0.00016438,7]
[408678552,1774109464703,-1500.0,0.00016438,7]
[408678553,1774109464712,-1500.0,0.00016438,7]
[408678554,1774109464723,-1500.0,0.00016438,7]
[408678555,1774109464733,-1500.0,0.00016438,7]
[408678556,1774109464743,-1500.0,0.00016438,7]
[408678557,1774109464753,-1500.0,0.00016438,7]
[408678558,1774109464764,-1500.0,0.00016438,7]
[408678559,1774109464774,-1500.0,0.00016438,7]
[408678560,1774109464785,-1500.0,0.00016438,7]
[408678561,1774109464795,-1500.0,0.00016438,7]
[408678562,1774109464805,-1500.0,0.00016438,7]
[408678563,1774109464816,-1500.0,0.00016438,7]
[408678564,1774109464826,-1500.0,0.00016438,7]
[408678565,1774109464837,-1500.0,0.00016438,7]
[408678566,1774109464846,-1500.0,0.00016438,7]
[408678567,1774109464856,-1500.0,0.00016438,7]
[408678568,1774109464866,-1500.0,0.00016438,7]
[408678569,1774109464876,-1500.0,0.00016438,7]
[408678570,1774109464885,-1500.0,0.00016438,7]
[408678571,1774109464895,-1500.0,0.00016438,7]
[408678572,1774109464906,-1500.0,0.00016438,7]
[408678573,1774109464918,-1500.0,0.00016438,7]
[408678574,1774109464928,-1500.0,0.00016438,7]
[408678575,1774109464938,-1500.0,0.00016438,7]
[408678576,1774109464948,-1500.0,0.00016438,7]
[408678577,1774109464958,-1500.0,0.00016438,7]
[408678578,1774109464968,-1500.0,0.00016438,7]
[408678579,1774109464978,-1500.0,0.00016438,7]
[408678580,1774109464988,-1500.0,0.00016438,7]
[408678581,1774109464998,-1500.0,0.00016438,7]
[408678582,1774109465008,-1500.0,0.00016438,7]
[408678583,1774109465018,-1500.0,0.00016438,7]
[408678584,1774109465029,-1500.0,0.00016438,7]
[408678585,1774109465039,-1500.0,0.00016438,7]
[408678586,1774109465049,-1500.0,0.00016438,7]
[408678587,1774109465059,-1500.0,0.00016438,7]
[408678588,1774109465068,-1500.0,0.00016438,7]
[408678589,1774109465078,-1500.0,0.00016438,7]
[408678590,1774109465088,-1500.0,0.00016438,7]
[408678591,1774109465099,-1500.0,0.00016438,7]
[408678592,1774109465110,-1500.0,0.00016438,7]
[408678593,1774109465120,-1500.0,0.00016438,7]
[408678594,1774109465133,-1500.0,0.00016438,7]
[408678595,1774109465143,-1500.0,0.00016438,7]
[408678596,1774109465153,-1500.0,0.00016438,7]
[408678597,1774109465164,-1500.0,0.00016438,7]
[408678598,1774109465174,-1500.0,0.00016438,7]
[408678599,1774109465183,-1500.0,0.00016438,7]
[408678600,1774109465193,-1500.0,0.00016438,7]
[408678601,1774109465203,-1500.0,0.00016438,7]
[408678602,1774109465213,-1500.0,0.00016438,7]
[408678603,1774109465222,-1500.0,0.00016438,7]
[408678604,1774109465232,-1500.0,0.00016438,7]
[408678605,1774109465242,-1500.0,0.00016438,7]
[408678606,1774109465251,-1500.0,0.00016438,7]
[408678607,1774109465261,-1500.0,0.00016438,7]
[408678608,1774109465271,-1500.0,0.00016438,7]
[408678609,1774109465281,-1500.0,0.00016438,7]
[408678610,1774109465291,-1500.0,0.00016438,7]
[408678611,1774109465301,-1500.0,0.00016438,7]
[408678612,1774109465311,-1500.0,0.00016438,7]
[408678613,1774109465320,-1500.0,0.00016438,7]
[408678614,1774109465330,-1500.0,0.00016438,7]
[408678615,1774109465339,-1500.0,0.00016438,7]
[408678616,1774109465349,-1500.0,0.00016438,7]
[408678617,1774109465358,-1500.0,0.00016438,7]
[408678618,1774109465367,-1500.0,0.00016438,7]
[408678619,1774109465376,-1500.0,0.00016438,7]
[408678620,1774109465386,-1500.0,0.00016438,7]
[408678621,1774109465395,-1500.0,0.00016438,7]
[408678622,1774109465405,-1500.0,0.00016438,7]
[408678623,1774109465414,-1500.0,0.00016438,7]
[408678624,1774109465423,-1500.0,0.00016438,7]
[408678625,1774109465433,-1500.0,0.00016438,7]
[408678626,1774109465442,-1500.0,0.00016438,7]
[408678627,1774109465451,-1500.0,0.00016438,7]
[408678628,1774109465461,-1500.0,0.00016438,7]
[408678629,1774109465471,-1500.0,0.00016438,7]
[408678630,1774109465480,-1500.0,0.00016438,7]
[408678631,1774109465490,-1500.0,0.00016438,7]
[408678632,1774109465500,-165.52649878,0.00016438,2]
[408678633,1774109465510,-902.43098889,0.00016438,2]
[408678634,1774109465519,-2500.0,0.00016438,2]
[408678635,1774109465529,-1211.75608738,0.00016438,2]
[408678636,1774109465539,-3000.0,0.00016438,2]
[408678637,1774109465548,-2500.0,0.00016438,2]
[408678638,1774109465559,-3000.0,0.00016438,2]
[408678639,1774109465569,-1315.71970691,0.00016438,2]
[408678640,1774109465578,-3048.72018053,0.00016438,2]
[408678641,1774109465588,-3000.0,0.00016438,2]
[408678642,1774109465598,-3000.0,0.00016438,2]
[408678643,1774109465607,-3000.0,0.00016438,2]
[408678644,1774109465616,-1212.4525375,0.00016438,2]
[408678645,1774109465626,-1724.42254973,0.00016438,2]
[408678646,1774109465637,-3000.0,0.00016438,2]
[408678647,1774109465648,-3000.0,0.00016438,2]
[408678648,1774109465658,-3000.0,0.0001644,2]
[408678649,1774109465668,-3000.0,0.0001645,2]
[408678650,1774109465678,-3000.0,0.0001646,2]
[408678651,1774109465689,-3000.0,0.0001647,2]
[408678652,1774109465700,-3000.0,0.0001648,2]
[408678653,1774109465711,-3000.0,0.0001649,2]
[408678654,1774109465723,-3000.0,0.000165,2]
[408678655,1774109465733,-3000.0,0.0001651,2]
[408678656,1774109465743,-3000.0,0.0001652,2]
[408678657,1774109465754,-3000.0,0.0001653,2]
[408678658,1774109465763,-3000.0,0.0001654,2]
[408678659,1774109465772,-3000.0,0.0001655,2]
[408678660,1774109465782,-3000.0,0.0001656,2]
[408678661,1774109465794,-4690.812566,0.0001657,2]
[408678662,1774109465803,-162.37944299,0.00016587,60]
[408678663,1774109465814,-10125.9954636,0.000166,2]
[408678664,1774109465824,-10125.9954636,0.000167,2]
[408678665,1774109465834,-814.2,0.00016712,2]
[408678666,1774109465844,-170.20924775,0.00016732,60]
[408678667,1774109465854,-190.0,0.00016742,2]
[408678668,1774109465863,-200.0,0.00016858,2]
[408678669,1774109465873,-200.0,0.00016858,2]
[408678670,1774109465882,-200.0,0.00016858,2]
[408678671,1774109465891,-200.0,0.00016858,2]
[408678672,1774109465900,-200.0,0.00016858,2]
[408678673,1774109465910,-200.0,0.00016858,2]
[408678674,1774109465919,-200.0,0.00016858,2]
[408678675,1774109465928,-200.0,0.00016858,2]
[408678676,1774109465937,-287.0,0.00016858,2]
[408678677,1774109465947,-1000.0,0.00016872,2]
[408678678,1774109465957,-244.0,0.00016872,2]
[408678679,1774109465967,-2500.0,0.000169,2]
[408678680,1774109465977,-10125.9954636,0.000169,2]
[408678681,1774109465987,-321.5986262,0.00016913,60]
[408678682,1774109465996,-236.75590028,0.00016913,60]
[408678683,1774109466006,-2100.0,0.0001696,2]
[408678684,1774109466017,-814.2,0.00016986,2]
[408678685,1774109466026,-250.0,0.00016986,2]
[408678686,1774109466035,-3500.0,0.00016986,2]
[408678687,1774109466044,-3500.0,0.00016986,2]
[408678688,1774109466054,-250.0,0.00016986,2]
[408678689,1774109466063,-3500.0,0.00016986,2]
[408678690,1774109466073,-3500.0,0.00016986,2]
[408678691,1774109466082,-3500.0,0.00016986,2]
[408678692,1774109466091,-3500.0,0.00016986,2]
[408678693,1774109466101,-3500.0,0.00016986,2]
[408678694,1774109466110,-1000.0,0.00017,17]
[408678695,1774109466120,-112358.36298175,0.00017,2]
[408678696,1774109466129,-200.0,0.00017,3]
[408678697,1774109466139,-200.0,0.00017,2]
[408678698,1774109466149,-99999.999999,0.00017,2]
[408678699,1774109466158,-500.0,0.00017,2]
[408678700,1774109466167,-500.0,0.00017,2]
[408678701,1774109466176,-500.0,0.00017,2]
[408678702,1774109466185,-600.0,0.00017,2]
[408678703,1774109466195,-500.0,0.00017,2]
[408678704,1774109466204,-600.0,0.00017,2]
[408678705,1774109466214,-1900.0,0.00017,2]
[408678706,1774109466223,-600.0,0.00017,2]
[408678707,1774109466233,-600.0,0.00017,2]
[408678708,1774109466242,-1900.0,0.00017,2]
[408678709,1774109466252,-600.0,0.00017,2]
[408678710,1774109466262,-1900.0,0.00017,2]
[408678711,1774109466271,-500.0,0.00017,2]
[408678712,1774109466281,-1900.0,0.00017,2]
[408678713,1774109466291,-600.0,0.00017,2]
[408678714,1774109466300,-1900.0,0.00017,2]
[408678715,1774109466310,-600.0,0.00017,2]
[408678716,1774109466319,-1900.0,0.00017,2]
[408678717,1774109466329,-600.0,0.00017,2]
[408678718,1774109466338,-1900.0,0.00017,2]
[408678719,1774109466347,-600.0,0.00017,2]
[408678720,1774109466357,-1900.0,0.00017,2]
[408678721,1774109466367,-600.0,0.00017,2]
[408678722,1774109466377,-1900.0,0.00017,2]
[408678723,1774109466386,-600.0,0.00017,2]
[408678724,1774109466396,-1900.0,0.00017,2]
[408678725,1774109466406,-600.0,0.00017,2]
[408678726,1774109466416,-1900.0,0.00017,2]
[408678727,1774109466425,-600.0,0.00017,2]
[408678728,1774109466435,-1900.0,0.00017,2]
[408678729,1774109466444,-500.0,0.00017,2]
[408678730,1774109466454,-1900.0,0.00017,2]
[408678731,1774109466465,-1900.0,0.00017,2]
[408678732,1774109466475,-800.0,0.00017,2]
[408678733,1774109466484,-800.0,0.00017,2]
[408678734,1774109466494,-800.0,0.00017,2]
[408678735,1774109466503,-800.0,0.00017,2]
[408678736,1774109466513,-800.0,0.00017,2]
[408678737,1774109466699,-800.0,0.00017,2]
[408678738,1774109466709,-800.0,0.00017,2]
[408678739,1774109466720,-800.0,0.00017,2]
[408678740,1774109466730,-800.0,0.00017,2]
[408678741,1774109466740,-800.0,0.00017,2]
[408678742,1774109466750,-800.0,0.00017,2]
[408678743,1774109466759,-800.0,0.00017,2]
[408678744,1774109466768,-800.0,0.00017,2]
[408678745,1774109466778,-800.0,0.00017,2]
[408678746,1774109466787,-800.0,0.00017,2]
[408678747,1774109466797,-500.0,0.00017,2]
[408678748,1774109466806,-748.38058243,0.00017,2]
[408678749,1774109466816,-900.0,0.00017,2]
[408678750,1774109466825,-194.99977778,0.00017005,60]
[408678751,1774109466834,-152.0417379,0.00017005,60]
[408678752,1774109466843,-226.54350859,0.0001707,60]
[408678753,1774109466854,-237.29725647,0.0001707,60]
[408678754,1774109466863,-10125.9954636,0.000171,2]
[408678755,1774109466873,-10125.9954636,0.000172,2]
[408678756,1774109466883,-814.2,0.0001726,2]
[408678757,1774109466893,-161.31399345,0.00017325,2]
[408678758,1774109466903,-12437.22846887,0.00017392,2]
[408678759,1774109466913,-10125.9954636,0.000174,2]
[408678760,1774109466923,-156.0,0.00017443,2]
[408678761,1774109466932,-1000.0,0.000175,2]
[408678762,1774109466943,-2400.0,0.00017508,2]
[408678763,1774109466952,-814.2,0.00017534,2]
[408678764,1774109466962,-186.0,0.00017534,3]
[408678765,1774109466972,-350.0,0.00017534,2]
[408678766,1774109466983,-4000.0,0.00017534,2]
[408678767,1774109466993,-1828.83876659,0.00017534,2]
[408678768,1774109467004,-350.0,0.00017534,2]
[408678769,1774109467013,-4000.0,0.00017534,2]
[408678770,1774109467024,-4000.0,0.00017534,2]
[408678771,1774109467034,-4000.0,0.00017534,2]
[408678772,1774109467044,-4000.0,0.00017534,2]
[408678773,1774109467054,-4000.0,0.00017534,2]
[408678774,1774109467064,-2154.12774857,0.000176,2]
[408678775,1774109467074,-10125.9954636,0.000176,2]
[408678776,1774109467084,-172.20316389,0.00017604,60]
[408678777,1774109467093,-151.0,0.00017743,2]
[408678778,1774109467103,-10125.9954636,0.000178,2]
[408678779,1774109467114,-204.55,0.00017807,2]
[408678780,1774109467124,-814.2,0.00017808,2]
[408678781,1774109467135,-161.31399344,0.00017861,2]
[408678782,1774109467145,-174.90529991,0.00017873,2]
[408678783,1774109467155,-2500.0,0.000179,2]
[408678784,1774109467164,-1172.4939,0.000179,2]
[408678785,1774109467175,-10125.9954636,0.000179,2]
[408678786,1774109467184,-162.37944299,0.00017905,60]
[408678787,1774109467194,-153.43872844,0.0001792,60]
[408678788,1774109467204,-5198.0,0.00018,2]
[408678789,1774109467213,-6910.86958097,0.00018,10]
[408678790,1774109467223,-8809.49,0.00018,2]
[408678791,1774109467233,-183.05533795,0.00018,2]
[408678792,1774109467243,-1000.0,0.00018,2]
[408678793,1774109467254,-2700.0,0.00018056,2]
[408678794,1774109467264,-210.83401686,0.00018078,60]
[408678795,1774109467274,-165.97529065,0.00018078,120]
[408678796,1774109467285,-170.20924775,0.00018078,120]
[408678797,1774109467295,-814.2,0.00018082,2]
[408678798,1774109467305,-450.0,0.00018082,2]
[408678799,1774109467318,-3071.57016536,0.00018082,2]
[408678800,1774109467329,-450.0,0.00018082,2]
[408678801,1774109467340,-4500.0,0.00018082,2]
[408678802,1774109467351,-4262.87029738,0.00018082,2]
[408678803,1774109467361,-3709.8169393,0.00018082,2]
[408678804,1774109467371,-4500.0,0.00018082,2]
[408678805,1774109467382,-958.06176259,0.00018082,2]
[408678806,1774109467392,-10125.9954636,0.000181,2]
[408678807,1774109467402,-183.05533795,0.000182,2]
[408678808,1774109467412,-321.5986262,0.00018296,60]
[408678809,1774109467421,-236.75590028,0.00018296,60]
[408678810,1774109467435,-10125.9954636,0.000183,2]
[408678811,1774109467445,-814.2,0.00018356,2]
[408678812,1774109467455,-250.0,0.00018356,2]
[408678813,1774109467465,-183.05533795,0.000184,2]
[408678814,1774109467474,-152.0417379,0.00018406,60]
[408678815,1774109467485,-194.99977778,0.00018406,60]
[408678816,1774109467495,-226.54350859,0.00018484,60]
[408678817,1774109467504,-237.29725647,0.00018484,60]
[408678818,1774109467514,-808.542934,0.00018493,2]
[408678819,1774109467525,-10125.9954636,0.000185,2]
[408678820,1774109467536,-183.05533795,0.000185,2]
[408678821,1774109467546,-1000.0,0.000185,2]
[408678822,1774109467555,-348.0,0.0001856,2]
[408678823,1774109467565,-3000.0,0.00018604,2]
[408678824,1774109467575,-814.2,0.0001863,2]
[408678825,1774109467584,-188.0,0.0001863,3]
[408678826,1774109467594,-550.0,0.0001863,2]
[408678827,1774109467604,-663.21346204,0.0001863,2]
[408678828,1774109467614,-5000.0,0.0001863,2]
[408678829,1774109467623,-5000.0,0.0001863,2]
[408678830,1774109467633,-10125.9954636,0.000187,2]
[408678831,1774109467644,-183.05533795,0.000187,2]
[408678832,1774109467657,-33576.98744557,0.000187,15]
[408678833,1774109467667,-5000.0,0.00018768,2]
[408678834,1774109467677,-192.44036834,0.00018792,60]
[408678835,1774109467687,-2500.0,0.000189,2]
[408678836,1774109467698,-10125.9954636,0.000189,2]
[408678837,1774109467708,-814.2,0.00018904,2]
[408678838,1774109467718,-350.0,0.00018904,2]
[408678839,1774109467730,-183.07389507,0.00018937,60]
[408678840,1774109467739,-172.20316386,0.00018937,120]
[408678841,1774109467750,-1000.0,0.00019,19]
[408678842,1774109467760,-7748.022564,0.00019,5]
[408678843,1774109467769,-24611.99676578,0.00019,2]
[408678844,1774109467779,-2603.49,0.00019,2]
[408678845,1774109467788,-8999.999999,0.00019,2]
[408678846,1774109467798,-10125.9954636,0.00019,2]
[408678847,1774109467808,-1000.0,0.00019,2]
[408678848,1774109467818,-151.50565336,0.00019045,60]
[408678849,1774109467827,-160.19424162,0.00019106,120]
[408678850,1774109467837,-1155.80818486,0.00019152,2]
[408678851,1774109467847,-454.9041994,0.00019158,2]